bitfinex-derivatives/quotes_SOLF0:USTF0_20250831
["timestamp","ask_amount","ask_price","bid_price","bid_amount"]
[1756644723499,121.88,203.36,203.25,7.55]
[1756644723705,121.88,203.36,203.26,4.7120327]
[1756644723907,121.88,203.36,203.27,4.7120327]
[1756644724106,121.88,203.36,203.28,4.7120327]
[1756644724409,121.88,203.36,203.29,4.7120327]
[1756644724607,121.88,203.36,203.3,4.7120327]
[1756644724810,121.88,203.36,203.31,4.7120327]
[1756644725008,121.88,203.36,203.25,7.55]
[1756644725206,121.88,203.35,203.27,7.55]
[1756644725406,121.88,203.35,203.29,7.55]
[1756644725709,121.88,203.35,203.31,7.55]
[1756644725909,121.88,203.35,203.32,4.71284447]
[1756644726205,121.88,203.35,203.33,4.71284447]
[1756644726403,121.88,203.35,203.34,4.71284447]
[1756644733312,121.88,203.35,203.34,12.67284447]
[1756644733911,121.88,203.35,203.34,4.71284447]
[1756644734113,121.88,203.35,203.31,7.96]
[1756644734308,121.88,203.35,203.32,4.71083075]
[1756644734509,121.88,203.35,203.33,4.71083075]
[1756644734809,121.88,203.35,203.34,4.71083075]
[1756644738016,121.84,203.37,203.34,12.67083075]
[1756644738212,121.84,203.37,203.35,4.71083075]
[1756644738412,121.84,203.37,203.36,4.71083075]
[1756644744821,121.84,203.37,203.31,7.96]
[1756644745020,121.84,203.37,203.32,4.72610256]
[1756644745220,121.84,203.37,203.33,4.72610256]
[1756644745420,121.84,203.37,203.34,12.68610256]
[1756644745616,121.84,203.37,203.35,4.72610256]
[1756644745823,121.84,203.37,203.36,4.72610256]
[1756644746118,5.52664788,203.49,203.37,7.96]
[1756644746317,5.52664788,203.49,203.29,15.8]
[1756644746318,27.34,203.48,203.39,7.96]
[1756644746523,27.34,203.48,203.4,4.72610256]
[1756644746723,27.34,203.48,203.41,4.72610256]
[1756644747019,27.34,203.48,203.42,4.72610256]
[1756644747221,27.34,203.48,203.43,4.72610256]
[1756644747421,27.34,203.48,203.44,4.72610256]
[1756644747615,27.34,203.48,203.45,4.72610256]
[1756644747822,27.34,203.48,203.46,4.72610256]
[1756644748017,27.34,203.48,203.47,4.72610256]
[1756644748419,27.34,203.48,203.39,7.96]
[1756644748619,27.34,203.48,203.4,4.72887285]
[1756644748819,27.34,203.48,203.41,4.72887285]
[1756644749024,27.34,203.48,203.42,4.72887285]
[1756644749224,27.34,203.48,203.39,7.96]
[1756644749225,27.34,203.48,203.43,4.72887285]
[1756644749526,27.34,203.48,203.44,4.72887285]
[1756644749723,27.34,203.48,203.45,4.72887285]
[1756644750024,27.34,203.48,203.46,4.72887285]
[1756644750319,27.34,203.48,203.39,7.96]
[1756644750524,27.34,203.48,203.4,4.72610855]
[1756644750724,27.34,203.48,203.41,4.72610855]
[1756644750926,27.34,203.48,203.42,4.72610855]
[1756644751120,27.34,203.48,203.43,4.72610855]
[1756644751423,27.34,203.48,203.44,4.72610855]
[1756644751623,27.34,203.48,203.45,4.72610855]
[1756644751825,27.34,203.48,203.39,7.96]
[1756644752025,27.34,203.48,203.41,7.96]
[1756644752225,27.34,203.48,203.42,4.68519125]
[1756644752425,27.34,203.48,203.43,12.64519125]
[1756644752626,27.34,203.48,203.44,4.68519125]
[1756644752822,27.34,203.48,203.45,4.68519125]
[1756644753028,27.34,203.48,203.46,4.68519125]
[1756644753230,27.34,203.48,203.43,7.96]
[1756644753430,27.34,203.48,203.44,4.68181688]
[1756644753623,27.34,203.48,203.45,4.68181688]
[1756644753825,27.34,203.48,203.46,4.68181688]
[1756644754020,27.34,203.48,203.43,7.96]
[1756644754226,27.34,203.48,203.44,4.68065634]
[1756644754518,27.34,203.48,203.45,4.68065634]
[1756644754726,27.34,203.48,203.46,4.68065634]
[1756644754926,27.34,203.48,203.47,4.68065634]
[1756644755124,27.34,203.48,203.43,7.96]
[1756644755325,27.34,203.48,203.44,4.6777077]
[1756644755528,27.34,203.48,203.45,4.67737759]
[1756644755728,27.34,203.48,203.46,4.67737759]
[1756644755925,27.34,203.48,203.33,7.96]
[1756644756232,27.34,203.48,203.35,7.96]
[1756644756540,27.34,203.48,203.34,4.67737759]
[1756644756541,27.34,203.48,203.37,7.96]
[1756644756729,27.34,203.48,203.39,7.96]
[1756644756931,27.34,203.48,203.4,4.67737759]
[1756644757126,27.34,203.48,203.41,4.67737759]
[1756644757328,27.34,203.48,203.42,4.67737759]
[1756644757635,27.34,203.48,203.43,4.67737759]
[1756644757931,27.34,203.48,203.44,4.67737759]
[1756644758124,27.34,203.48,203.45,4.67737759]
[1756644758323,27.34,203.48,203.39,7.96]
[1756644758525,27.34,203.48,203.4,4.67442788]
[1756644758722,27.34,203.48,203.41,4.67442788]
[1756644758933,27.34,203.48,203.42,4.67442788]
[1756644759233,27.34,203.48,203.43,4.67442788]
[1756644759433,27.34,203.48,203.44,4.67442788]
[1756644759628,27.34,203.48,203.45,4.67442788]
[1756644759829,27.34,203.48,203.39,7.96]
[1756644760029,27.34,203.48,203.4,4.67385404]
[1756644760232,27.34,203.48,203.41,4.67385404]
[1756644760431,27.34,203.48,203.42,4.67385404]
[1756644760633,27.34,203.48,203.43,4.67385404]
[1756644760930,27.34,203.48,203.44,4.67385404]
[1756644761135,27.34,203.48,203.41,7.81]
[1756644761329,27.34,203.48,203.42,4.6148664]
[1756644761536,27.34,203.48,203.44,7.81]
[1756644761731,27.34,203.48,203.46,7.81]
[1756644761935,27.34,203.48,203.47,12.4248664]
[1756644762637,27.34,203.48,203.47,12.42010216]
[1756644763831,27.34,203.48,203.47,4.61010216]
[1756644766131,27.34,203.48,203.44,7.81]
[1756644766331,27.34,203.48,203.45,4.6065097]
[1756644766532,27.34,203.48,203.46,4.6065097]
[1756644766728,27.34,203.48,203.47,4.6065097]
[1756644768438,27.34,203.48,203.47,12.4165097]
[1756644769740,27.34,203.48,203.47,4.6065097]
[1756644776631,27.34,203.48,203.33,7.81]
[1756644776632,27.84,203.48,203.33,7.81]
[1756644776832,27.34,203.48,203.34,4.62891818]
[1756644777041,27.34,203.48,203.36,7.81]
[1756644777242,27.34,203.48,203.38,7.81]
[1756644777432,27.34,203.48,203.39,4.62891818]
[1756644777633,27.34,203.48,203.4,4.62891818]
[1756644777837,27.34,203.48,203.41,4.62891818]
[1756644778042,27.34,203.48,203.42,4.62891818]
[1756644778242,27.34,203.48,203.43,4.62891818]
[1756644778447,27.34,203.48,203.44,4.62891818]
[1756644778639,27.34,203.48,203.45,4.62891818]
[1756644778838,27.34,203.48,203.38,7.81]
[1756644779039,27.34,203.48,203.39,4.63141809]
[1756644779239,27.34,203.48,203.4,4.63141809]
[1756644779435,27.34,203.48,203.41,4.63141809]
[1756644779640,27.34,203.48,203.42,4.63141809]
[1756644779842,27.34,203.48,203.43,4.63141809]
[1756644780138,27.34,203.48,203.44,4.63141809]
[1756644780347,27.34,203.48,203.38,7.81]
[1756644780544,27.34,203.48,203.39,4.63475615]
[1756644780746,27.34,203.48,203.4,4.63475615]
[1756644780948,27.34,203.48,203.41,4.63475615]
[1756644781148,27.34,203.48,203.35,7.81]
[1756644781348,27.34,203.48,203.36,4.63768357]
[1756644781545,27.34,203.48,203.37,4.63768357]
[1756644781749,27.34,203.48,203.38,4.63768357]
[1756644781951,5.52664788,203.47,203.39,4.63768357]
[1756644782246,27.34,203.48,203.32,7.81]
[1756644782247,5.52664788,203.46,203.32,7.81]
[1756644782446,5.52664788,203.46,203.33,4.63991935]
[1756644782646,5.52664788,203.46,203.34,4.63991935]
[1756644782846,5.52664788,203.46,203.35,4.63991935]
[1756644783148,5.52664788,203.46,203.36,4.63991935]
[1756644783353,5.52664788,203.46,203.37,4.63991935]
[1756644783651,5.52664788,203.45,203.32,7.81]
[1756644783841,5.52664788,203.45,203.33,4.64080791]
[1756644784045,5.52664788,203.45,203.34,4.64080791]
[1756644784242,5.52664788,203.45,203.35,4.64080791]
[1756644784441,5.52664788,203.45,203.36,4.64080791]
[1756644784645,5.52664788,203.45,203.37,4.64080791]
[1756644784955,5.52664788,203.45,203.32,7.81]
[1756644785146,5.52664788,203.45,203.33,4.64105684]
[1756644785341,5.52664788,203.45,203.34,4.64105684]
[1756644785650,55.02,203.44,203.36,7.81]
[1756644785840,55.02,203.44,203.38,7.81]
[1756644786042,55.02,203.44,203.39,4.64105684]
[1756644786446,55.02,203.44,203.41,7.81]
[1756644787060,55.02,203.44,203.42,4.63876675]
[1756644787362,55.02,203.44,203.43,4.63876675]
[1756644788159,5.52664788,203.52,203.43,4.63876675]
[1756644788359,121.66,203.51,203.44,4.63876675]
[1756644788558,121.66,203.51,203.45,4.63876675]
[1756644788754,121.66,203.51,203.47,7.39]
[1756644788961,121.66,203.51,203.48,4.63876675]
[1756644789154,121.66,203.51,203.49,4.63876675]
[1756644789360,121.66,203.51,203.5,4.63876675]
[1756644793761,121.66,203.51,203.42,7.39]
[1756644793762,122.16,203.51,203.42,7.39]
[1756644793959,121.66,203.51,203.43,4.63985388]
[1756644794157,121.66,203.51,203.44,4.63985388]
[1756644794359,121.66,203.51,203.45,4.63985388]
[1756644794560,121.66,203.51,203.46,4.63985388]
[1756644794862,121.66,203.51,203.47,4.63985388]
[1756644795061,121.66,203.51,203.48,4.63985388]
[1756644795262,121.66,203.51,203.49,4.64013143]
[1756644795464,121.66,203.51,203.42,7.39]
[1756644795761,121.66,203.51,203.43,4.640128]
[1756644795962,121.66,203.51,203.44,4.640128]
[1756644796159,121.66,203.51,203.45,4.640128]
[1756644796462,121.66,203.51,203.46,4.640128]
[1756644796663,121.66,203.51,203.47,4.640128]
[1756644796863,121.66,203.51,203.35,4.09260265]
[1756644796864,121.66,203.51,203.38,7.39]
[1756644797059,127.18664788,203.51,203.39,4.64282918]
[1756644797361,127.18664788,203.51,203.38,7.39]
[1756644797563,121.66,203.51,203.39,4.64286347]
[1756644797759,121.66,203.51,203.4,4.64286347]
[1756644797956,121.66,203.51,203.41,4.64286347]
[1756644798159,121.66,203.51,203.42,4.64286347]
[1756644798367,121.66,203.51,203.43,4.64286347]
[1756644798658,127.18664788,203.51,203.44,4.64286347]
[1756644798862,128.04228389,203.51,203.45,4.64286347]
[1756644799064,5.52664788,203.5,203.38,7.39]
[1756644799257,5.52664788,203.49,203.39,4.64382339]
[1756644799453,5.52664788,203.49,203.4,4.64382339]
[1756644799664,5.52664788,203.49,203.41,4.64382339]
[1756644799867,5.52664788,203.49,203.42,4.64382339]
[1756644800065,5.52664788,203.49,203.43,4.64382339]
[1756644800259,5.52664788,203.48,203.3,7.39]
[1756644800459,5.52664788,203.46,203.31,4.64516517]
[1756644800663,20.26664788,203.45,203.32,12.03516517]
[1756644800862,20.26664788,203.45,203.33,4.64516517]
[1756644801158,20.26664788,203.45,203.34,4.64516517]
[1756644801359,14.74,203.45,203.35,4.64516517]
[1756644801565,14.74,203.45,203.36,4.64516517]
[1756644801865,14.74,203.45,203.37,4.64516517]
[1756644802065,14.74,203.45,203.38,4.64516517]
[1756644802267,14.74,203.45,203.39,4.64516517]
[1756644802468,14.74,203.45,203.32,7.39]
[1756644802767,14.74,203.45,203.33,4.63829452]
[1756644802962,5.52664788,203.42,203.34,4.63829452]
[1756644803168,335.96664788,203.41,203.28,7.39]
[1756644803465,5.52664788,203.4,203.29,4.63855132]
[1756644803656,6.38277856,203.4,203.3,4.63855132]
[1756644803861,121.62,203.39,203.31,4.63855132]
[1756644804063,121.62,203.39,203.32,4.63855132]
[1756644804359,121.62,203.39,203.2,7.39]
[1756644804564,5.52664788,203.38,203.22,7.39]
[1756644804767,5.52664788,203.38,203.23,4.6374439]
[1756644804967,5.52664788,203.38,203.25,7.39]
[1756644805170,127.14664788,203.39,203.26,4.6374439]
[1756644805464,127.14664788,203.39,203.27,4.6374439]
[1756644805670,127.14664788,203.39,203.28,4.6374439]
[1756644805870,127.14664788,203.39,203.25,7.39]
[1756644806072,127.14664788,203.39,203.26,4.63393906]
[1756644806371,121.62,203.39,203.27,4.63393906]
[1756644806571,121.62,203.39,203.28,4.63393906]
[1756644806772,121.62,203.39,203.25,7.39]
[1756644806972,121.62,203.38,203.27,7.39]
[1756644807172,121.62,203.38,203.28,4.63198142]
[1756644807374,121.62,203.38,203.27,7.39]
[1756644807574,121.62,203.38,203.28,4.63187703]
[1756644807762,121.62,203.38,203.27,7.39]
[1756644807968,121.62,203.38,203.28,4.62971061]
[1756644808167,121.62,203.38,203.27,7.39]
[1756644815979,121.62,203.38,203.2,7.39]
[1756644816182,121.62,203.38,203.22,7.39]
[1756644816379,121.62,203.38,203.24,7.39]
[1756644816578,121.62,203.38,203.25,4.62237598]
[1756644816779,121.62,203.38,203.26,4.62154427]
[1756644817078,121.62,203.38,203.24,7.39]
[1756644817279,121.62,203.38,203.25,4.62191634]
[1756644817584,121.62,203.38,203.26,4.62191634]
[1756644817781,121.62,203.38,203.24,7.39]
[1756644817984,121.62,203.38,203.26,7.31]
[1756644819385,121.62,203.38,203.27,4.62381325]
[1756644819587,121.62,203.38,203.26,7.31]
[1756644819781,121.62,203.38,203.27,4.62382224]
[1756644820076,121.62,203.38,203.26,7.31]
[1756644820281,121.62,203.38,203.27,4.62448608]
[1756644820483,121.62,203.38,203.26,7.31]
[1756644820777,121.62,203.38,203.27,4.62448579]
[1756644820982,121.62,203.38,203.26,7.31]
[1756644821184,121.62,203.38,203.27,4.6244887]
[1756644821382,121.62,203.38,203.26,7.31]
[1756644821690,121.62,203.38,203.27,4.62493873]
[1756644821986,121.62,203.38,203.26,7.31]
[1756644822185,121.62,203.38,203.27,4.62480336]
[1756644822383,121.62,203.38,203.26,7.31]
[1756644822576,121.62,203.38,203.27,4.62466303]
[1756644822778,121.62,203.38,203.26,7.31]
[1756644822978,121.62,203.38,203.27,4.62475534]
[1756644823285,121.62,203.38,203.28,4.62586521]
[1756644823479,121.62,203.38,203.26,7.31]
[1756644823682,121.62,203.38,203.27,4.62599763]
[1756644823982,121.62,203.38,203.28,4.62599763]
[1756644824179,121.62,203.38,203.26,7.31]
[1756644824488,121.62,203.38,203.27,4.62612325]
[1756644824688,121.62,203.38,203.28,4.62612325]
[1756644824895,121.62,203.38,203.26,7.31]
[1756644825083,121.62,203.38,203.27,4.62612325]
[1756644825387,0.85613068,203.4,203.29,7.31]
[1756644825587,0.85613068,203.4,203.31,7.31]
[1756644825588,121.64,203.39,203.31,7.31]
[1756644833494,121.64,203.39,203.2,7.31]
[1756644833695,121.64,203.39,203.22,7.31]
[1756644833895,121.64,203.39,203.24,7.31]
[1756644834097,121.64,203.39,203.26,7.31]
[1756644834292,121.64,203.39,203.28,7.31]
[1756644834492,121.64,203.39,203.3,7.31]
[1756644835297,121.64,203.39,203.31,4.63461248]
[1756644835498,121.64,203.39,203.3,7.31]
[1756644835698,121.64,203.39,203.31,4.63461248]
[1756644835888,121.64,203.39,203.3,7.31]
[1756644836295,121.64,203.39,203.31,4.6375001]
[1756644836496,121.64,203.39,203.3,7.31]
[1756644836698,121.64,203.39,203.31,4.63756743]
[1756644836897,121.64,203.39,203.3,7.31]
[1756644837099,121.64,203.39,203.31,4.63795139]
[1756644837401,121.64,203.39,203.3,7.31]
[1756644837697,121.64,203.39,203.31,4.64106426]
[1756644838002,121.64,203.39,203.3,7.31]
[1756644838200,121.64,203.39,203.31,4.6419013]
[1756644838401,121.64,203.39,203.32,4.64512145]
[1756644838601,121.64,203.39,203.3,7.31]
[1756644838903,121.64,203.39,203.31,4.64512145]
[1756644839100,121.64,203.39,203.32,4.64512145]
[1756644839303,121.64,203.39,203.3,7.31]
[1756644839596,121.64,203.39,203.31,4.64776348]
[1756644839798,121.64,203.39,203.33,7.31]
[1756644839996,121.58,203.38,203.19,68.19701673]
[1756644840196,121.58,203.38,203.21,7.31]
[1756644840401,121.58,203.38,203.23,7.31]
[1756644840599,121.58,203.38,203.22,4.64749787]
[1756644840600,121.58,203.38,203.25,7.31]
[1756644840803,121.58,203.38,203.27,7.31]
[1756644841001,121.58,203.38,203.29,7.31]
[1756644841198,121.58,203.38,203.3,4.64749787]
[1756644841395,121.58,203.38,203.31,4.64749787]
[1756644841594,121.58,203.38,203.32,4.64749787]
[1756644841800,121.58,203.38,203.33,4.64749787]
[1756644842000,121.58,203.38,203.34,4.64749787]
[1756644842195,121.58,203.38,203.29,7.31]
[1756644842401,121.58,203.38,203.3,4.65801999]
[1756644842605,121.58,203.38,203.31,4.65801999]
[1756644842902,121.58,203.38,203.32,4.65801999]
[1756644843103,121.58,203.38,203.33,4.65801999]
[1756644843304,121.58,203.38,203.34,4.65801999]
[1756644843599,121.58,203.38,203.35,4.65801999]
[1756644843804,121.58,203.38,203.36,4.65801999]
[1756644843998,121.58,203.38,203.31,7.31]
[1756644844204,121.58,203.38,203.32,4.66277907]
[1756644844404,121.58,203.38,203.33,11.97277907]
[1756644844704,121.58,203.38,203.34,11.97277907]
[1756644844902,121.58,203.38,203.35,4.66277907]
[1756644845101,121.58,203.38,203.36,4.66277907]
[1756644845302,121.58,203.38,203.34,7.31]
[1756644845303,121.58,203.38,203.37,4.66277907]
[1756644846201,127.10664788,203.38,203.37,4.66277907]
[1756644847202,121.58,203.38,203.37,4.66277907]
[1756644848106,121.58,203.38,203.27,7.25]
[1756644848306,5.52252614,203.36,203.28,4.67612947]
[1756644848606,5.52252614,203.36,203.29,4.67612947]
[1756644848908,5.52252614,203.36,203.3,4.67612947]
[1756644849107,5.52252614,203.36,203.31,4.51945668]
[1756644849308,5.52252614,203.36,203.32,4.51945668]
[1756644849510,5.52252614,203.36,203.33,4.51945668]
[1756644849808,5.52252614,203.36,203.34,4.51945668]
[1756644850007,5.52252614,203.36,203.29,7.25]
[1756644850308,5.52252614,203.36,203.3,4.51956158]
[1756644850508,5.52252614,203.36,203.31,4.51956158]
[1756644850712,5.52252614,203.36,203.32,4.51956158]
[1756644850910,5.52252614,203.36,203.33,4.51956158]
[1756644851108,5.52252614,203.36,203.34,4.51956158]
[1756644851407,5.52252614,203.36,203.29,7.25]
[1756644851607,5.52252614,203.36,203.3,4.51969656]
[1756644851810,5.52252614,203.36,203.31,4.51969656]
[1756644852011,5.52252614,203.36,203.32,4.51969656]
[1756644852210,5.52252614,203.36,203.33,4.51969656]
[1756644852406,5.52252614,203.36,203.34,4.51969656]
[1756644852606,5.52252614,203.36,203.29,7.25]
[1756644852802,5.52252614,203.35,203.3,4.51858576]
[1756644853010,127.06252614,203.34,203.31,4.51858576]
[1756644853312,127.06252614,203.34,203.32,4.51858576]
[1756644853611,127.06252614,203.34,203.26,7.25]
[1756644853811,127.06252614,203.34,203.27,4.53710792]
[1756644854010,127.06252614,203.34,203.28,4.53710792]
[1756644854211,127.06252614,203.34,203.29,4.53710792]
[1756644854412,127.06252614,203.34,203.3,4.53710792]
[1756644854611,127.06252614,203.34,203.31,4.53710792]
[1756644854811,127.06252614,203.34,203.26,7.25]
[1756644855011,127.06252614,203.34,203.27,4.51854851]
[1756644855211,127.06252614,203.34,203.28,4.51854851]
[1756644855411,127.06252614,203.34,203.26,7.25]
[1756644855412,127.06252614,203.34,203.29,4.51854851]
[1756644855710,127.06252614,203.34,203.3,4.51854851]
[1756644855911,127.06252614,203.34,203.31,4.51854851]
[1756644856111,127.06252614,203.34,203.32,4.51854851]
[1756644856311,127.06252614,203.34,203.26,7.25]
[1756644856502,5.52252614,203.34,203.28,7.25]
[1756644856708,34.3,203.33,203.3,7.25]
[1756644856908,34.3,203.33,203.31,4.5366646]
[1756644857108,34.3,203.33,203.32,11.7866646]
[1756644857711,121.52,203.33,203.32,11.7866646]
[1756644859416,121.52,203.33,203.32,4.5366646]
[1756644859711,121.52,203.33,203.32,4.53526127]
[1756644861213,121.5,203.33,203.32,4.53526127]
[1756644863619,121.5,203.33,203.32,11.78526127]
[1756644864720,121.5,203.33,203.32,4.53526127]
[1756644865824,121.48,203.33,203.32,4.53526127]
[1756644870428,121.46,203.33,203.32,4.53266613]
[1756644872928,5.52252614,203.36,203.32,4.53266613]
[1756644873228,121.46,203.35,203.33,4.53266613]
[1756644873429,5.52252614,203.36,203.34,4.53266613]
[1756644873630,121.44,203.35,203.3,7.25]
[1756644873824,121.44,203.35,203.31,4.53282338]
[1756644874128,121.44,203.35,203.32,4.53282338]
[1756644874329,5.52252614,203.33,203.25,7.25]
[1756644874525,5.52252614,203.33,203.27,7.25]
[1756644874830,5.52252614,203.35,203.28,4.53465803]
[1756644875022,5.52252614,203.35,203.21,70.26100378]
[1756644875023,121.44,203.34,203.29,11.78465803]
[1756644875221,121.44,203.34,203.3,4.53465803]
[1756644875531,121.44,203.34,203.31,4.53465803]
[1756644875732,121.44,203.34,203.32,4.53465803]
[1756644876030,5.52252614,203.35,203.33,4.53465803]
[1756644876232,5.52252614,203.36,203.34,4.53465803]
[1756644876436,5.52252614,203.36,203.29,7.25]
[1756644876437,5.52252614,203.36,203.35,4.53465803]
[1756644876935,121.44,203.36,203.35,4.53465803]
[1756644877336,121.44,203.36,203.35,4.51052022]
[1756644877534,5.52252614,203.38,203.35,4.51052022]
[1756644877833,121.44,203.37,203.36,4.51052022]
[1756644880835,121.44,203.37,203.31,7.25]
[1756644881031,121.44,203.37,203.32,11.98256128]
[1756644881234,126.96252614,203.37,203.33,4.51256128]
[1756644881536,5.52252614,203.36,203.34,4.51256128]
[1756644881736,5.52252614,203.36,203.35,4.51256128]
[1756644889144,5.52252614,203.37,203.35,4.51256128]
[1756644889346,5.52252614,203.38,203.36,4.51256128]
[1756644889541,121.38,203.37,203.26,7.47]
[1756644889739,121.38,203.37,203.28,7.47]
[1756644889944,121.38,203.37,203.3,7.47]
[1756644890144,121.38,203.37,203.32,7.47]
[1756644890445,121.38,203.37,203.34,7.47]
[1756644890643,121.38,203.37,203.35,4.50348686]
[1756644890943,121.38,203.37,203.36,4.50348686]
[1756644891542,121.38,203.37,203.36,4.50311616]
[1756644893041,126.90252614,203.37,203.28,7.47]
[1756644893253,126.90252614,203.37,203.29,4.50869669]
[1756644893544,126.90252614,203.37,203.3,4.50869669]
[1756644893744,126.90252614,203.37,203.31,4.50869669]
[1756644893940,126.90252614,203.37,203.32,4.50869669]
[1756644894142,126.90252614,203.37,203.33,4.50869669]
[1756644894347,126.90252614,203.37,203.34,4.50869669]
[1756644894543,126.90252614,203.37,203.35,4.50869669]
[1756644894745,126.90252614,203.37,203.28,7.47]
[1756644894943,126.90252614,203.37,203.29,4.50863374]
[1756644895146,126.90252614,203.37,203.3,4.50863374]
[1756644895346,126.90252614,203.37,203.31,4.50863374]
[1756644895547,126.90252614,203.37,203.32,4.50863374]
[1756644895748,126.90252614,203.37,203.33,4.50863374]
[1756644895949,126.90252614,203.37,203.34,4.50863374]
[1756644896146,126.90252614,203.37,203.35,4.50863374]
[1756644896347,126.90252614,203.37,203.31,7.47]
[1756644896547,126.90252614,203.37,203.32,4.50871634]
[1756644896747,126.90252614,203.37,203.33,4.50871634]
[1756644896949,126.90252614,203.37,203.34,4.50871634]
[1756644897147,126.90252614,203.37,203.35,4.50871634]
[1756644897344,126.90252614,203.37,203.31,7.47]
[1756644897551,126.90252614,203.37,203.32,11.99793689]
[1756644897752,126.90252614,203.37,203.33,4.52793689]
[1756644897955,126.90252614,203.37,203.34,4.52793689]
[1756644898255,5.52252614,203.36,203.35,4.52793689]
[1756644901550,5.52252614,203.36,203.35,4.53129124]
[1756644901757,121.34,203.36,203.35,12.00129124]
[1756644902160,121.34,203.36,203.35,7.47]
[1756644902462,121.34,203.36,203.35,12.00060459]
[1756644903758,5.52252614,203.37,203.35,4.53060459]
[1756644903959,5.52252614,203.39,203.37,7.47]
[1756644904262,336.16252614,203.4,203.38,4.53060459]
[1756644904459,336.16252614,203.4,203.39,4.53060459]
[1756644905062,457.48252614,203.4,203.39,4.53060459]
[1756644908167,451.96,203.4,203.39,4.53060459]
[1756644908366,457.48361656,203.4,203.39,4.53060459]
[1756644909267,451.96,203.4,203.39,4.53060459]
[1756644909463,457.48324522,203.4,203.39,4.53060459]
[1756644911567,336.16324522,203.4,203.27,7.35]
[1756644911868,121.28,203.39,203.29,7.35]
[1756644912068,121.28,203.39,203.31,7.35]
[1756644912264,121.28,203.39,203.33,7.35]
[1756644912470,121.28,203.39,203.35,7.35]
[1756644912769,121.28,203.39,203.37,7.35]
[1756644912962,121.28,203.39,203.38,4.57750692]
[1756644914465,121.28,203.39,203.38,11.92750692]
[1756644917372,121.28,203.39,203.38,4.57750692]
[1756644917975,121.26,203.39,203.38,4.57750692]
[1756644918171,121.26,203.39,203.38,4.80964854]
[1756644922277,121.26,203.39,203.29,7.35]
[1756644922478,5.52029475,203.37,203.3,4.64172128]
[1756644922673,121.24,203.36,203.31,4.64172128]
[1756644922880,121.24,203.36,203.32,4.64172128]
[1756644923179,121.24,203.36,203.33,4.64172128]
[1756644923478,126.76029475,203.36,203.34,4.64172128]
[1756644923676,5.52029475,203.35,203.26,7.35]
[1756644923978,121.24,203.34,203.27,4.64207088]
[1756644924177,121.24,203.34,203.28,4.64207088]
[1756644924373,121.24,203.34,203.29,4.64207088]
[1756644924574,121.24,203.34,203.3,4.64207088]
[1756644924774,121.24,203.34,203.31,4.64207088]
[1756644924971,121.24,203.34,203.32,4.64207088]
[1756644925175,121.24,203.34,203.33,4.64207088]
[1756644925376,126.76029475,203.34,203.33,4.64207088]
[1756644926178,121.24,203.34,203.26,7.35]
[1756644926374,5.51621446,203.33,203.27,4.64047483]
[1756644926572,126.75621446,203.32,203.28,4.64047483]
[1756644926771,126.75621446,203.32,203.29,4.64047483]
[1756644927079,121.24,203.32,203.3,4.64047483]
[1756644927280,121.24,203.32,203.31,4.64047483]
[1756644928180,126.75621446,203.32,203.21,77.61100378]
[1756644928376,5.51621446,203.31,203.22,4.63815682]
[1756644928582,121.22,203.3,203.23,4.63815682]
[1756644928781,121.22,203.3,203.21,7.35]
[1756644930273,121.24,203.29,203.21,7.35]
[1756644930880,121.24,203.29,203.22,4.49717016]
[1756644931076,121.24,203.29,203.23,11.84717016]